[Event "AUT Bundesliga 2024-25"]
[Site "Austria"]
[Date "2025.04.02"]
[Round "6.15"]
[White "Markus, Robert"]
[Black "Blohberger, Felix"]
[Result "1/2-1/2"]
[Annotator "TA"]
[ECO "A22"]
[WhiteElo "2595"]
[BlackElo "2511"]
[PlyCount "94"]
[EventDate "2024.08.28"]
[EventType "team-tourn"]
[EventCountry "AUT"]
[SourceTitle "playchess.com"]
[Source "ChessBase"]
[SourceQuality "1"]
[TimeControl "40/5400+30:1800+30"]

{[%evp 9,94,-5,11,9,20,0,-6,0,30,9,23,26,35,25,31,10,21,17,19,6,11,10,12,0,28,0,7,0,0,12,45,11,13,0,17,8,8,8,9,0,0,-14,-12,-64,-53,-77,-81,-82,-5,-8,-18,-17,0,0,0,-147,-150,-147,-143,-147,-145,-147,-149,-144,-144,-147,-129,-131,-113,-131,-97,-97,-103,-116,-98,-110,-16,-16,-8,-8,-5,-4,-8,-6,-4,-8,0]} 1. c4 {[%emt 0:00:06]} Nf6 {[%emt 0:01:03]} 2. Nc3 {[%emt 0:00:09]} e5 {[%emt 0:00:18]} 3. e3 {[%emt 0:00:07]} Bb4 {[%emt 0:00:23]} 4. Nge2 {[%emt 0:00:07]} O-O {[%emt 0:00:24]} 5. Ng3 {[%emt 0:00:27]} Re8 {[%emt 0:08:53]} 6. Be2 {[%emt 0:03:52] A22: English Opening: 1...e5 2 Nc3 Nf6.} c6 {[%emt 0:01:23]} 7. O-O $146 {[%emt 0:03:37]} (7. a3 Bxc3 8. bxc3 d5 9. cxd5 cxd5 10. O-O b6 11. a4 Ba6 12. Bb5 Bxb5 13. axb5 {½-½ Ivanisevic,I (2544)-Kollars,D (2641) EU-ch 24th Petrovac 2024 (4)}) 7... d5 {[%emt 0:00:20]} 8. d4 {[%emt 0:00:06]} exd4 {[%emt 0:05:12]} 9. exd4 {[%emt 0:00:55]} h6 {[%emt 0:08:49]} 10. Bf4 {[%emt 0:08:13]} Bd6 {[%emt 0:13:45]} 11. Bxd6 {[%emt 0:10:56]} Qxd6 {[%emt 0:00:06]} 12. Qb3 {[%emt 0:00:11]} Re7 {[%emt 0:16:38]} 13. Rfe1 {[%emt 0:10:51]} Be6 {[%emt 0:03:01]} 14. Bf1 {[%emt 0:05:52]} h5 {[%emt 0:07:03]} 15. cxd5 {[%emt 0:06:49]} cxd5 {[%emt 0:00:17]} 16. Nb5 {[%emt 0:00:16]} Qd7 {[%emt 0:05:58]} 17. Qe3 {[%emt 0:02:39][%cal Og3f5] Nf5! would now be deadly.} (17. Qf3 $5) 17... Nc6 {[%emt 0:04:32]} 18. Qg5 {[%emt 0:01:25]} a6 {[%emt 0:01:36]} 19. Nc3 {[%emt 0:04:01]} Nxd4 {[%emt 0:01:58]} 20. Nxh5 {[%emt 0:07:47]} Nxh5 {[%emt 0:00:52] Successful Defense Black} 21. Qxh5 {[%emt 0:00:05]} g6 {[%emt 0:06:55]} 22. Qd1 {[%emt 0:04:32]} Nc6 {[%emt 0:00:21]} 23. Qd2 {[%emt 0:01:31]} Kg7 {[%emt 0:01:51]} 24. Rad1 {[%emt 0:02:25][%cal Rc3d5]} d4 {[%emt 0:01:11][%cal Oa8d8]} 25. Qg5 {[%emt 0:04:58]} f6 {[%emt 0:06:07]} 26. Qc5 {[%emt 0:03:32]} ({Better is} 26. Qg3 $11) 26... Rd8 {[%emt 0:00:21]} 27. Na4 {[%emt 0:12:10]} Bxa2 {[%emt 0:01:50]} 28. Rxe7+ {[%emt 0:03:44]} Qxe7 {[%emt 0:00:16]} (28... Nxe7 $17 29. Rd2 (29. Nb6 $2 Qd6 $17) 29... Nf5) 29. Qxe7+ $11 {[%emt 0:00:23]} Nxe7 {[%emt 0:00:06]} 30. Nc5 {[%emt 0:00:03] Prevents Bb3.} Rd5 {[%emt 0:01:58]} 31. Nxb7 {[%emt 0:01:48][%cal Of1d3]} Bb3 {[%emt 0:00:31]} 32. Ra1 {[%emt 0:01:02]} (32. Rd2 $1 $11 {was the only way to keep the balance.}) 32... d3 $17 {[%emt 0:00:28]} 33. Bxd3 {[%emt 0:00:14]} ({Of course not} 33. Na5 Bc2 (33... d2 34. Nxb3 d1=Q 35. Rxd1 $19) 34. Nc4 d2 35. Nxd2 Rxd2) 33... Rxd3 {[%emt 0:00:07]} 34. Nc5 {[%emt 0:00:03]} Rd1+ {[%emt 0:00:19]} 35. Rxd1 {[%emt 0:00:04]} Bxd1 {[%emt 0:00:05]} 36. Nxa6 {[%emt 0:00:02]} Nd5 {[%emt 0:01:00]} 37. f3 {[%emt 0:00:47]} g5 {[%emt 0:00:11]} 38. Kf2 {[%emt 0:00:09]} Kf7 {[%emt 0:00:39]} 39. Nc5 {[%emt 0:00:55]} Ke7 {[%emt 0:01:02]} 40. Kg3 {[%emt 0:01:27]} Ne3 {[%emt 0:01:10]} 41. Kf2 {[%emt 0:02:18]} Nc4 {[%emt 0:09:36]} 42. b4 {[%emt 0:00:17]} Bc2 {[%emt 0:06:23]} ({Black should try} 42... Kd6 $17 43. f4 gxf4) 43. Kg3 $11 {[%emt 0:06:40] The position is equal.} Nd6 {[%emt 0:04:20]} 44. f4 $1 {[%emt 0:03:18]} Bd1 {[%emt 0:03:55]} 45. fxg5 {[%emt 0:02:11]} fxg5 {[%emt 0:00:06]} 46. b5 {[%emt 0:00:49]} Nxb5 {[%emt 0:05:09] ...Nd6 is the strong threat.} 47. Ne4 {[%emt 0:00:08]} Nd6 {[%emt 0:00:07] White happily takes the draw.   Weighted Error Value: White=0.15 (very precise) /Black=0.14 (very precise)   Mistake:       	White=2     	Black=2      Inaccurate:     	White=3     	Black=2      OK:         	White=16    	Black=11     Best:        	White=3     	Black=1      Strong:       	White=1     	---} 1/2-1/2

[Event "AUT Bundesliga 2024-25"]
[Site "Austria"]
[Date "2025.04.02"]
[Round "6.16"]
[White "Peyrer, Konstantin"]
[Black "Korpa, Bence"]
[Result "1/2-1/2"]
[Annotator "TA"]
[ECO "A90"]
[WhiteElo "2451"]
[BlackElo "2543"]
[PlyCount "77"]
[EventDate "2024.08.28"]
[EventType "team-tourn"]
[EventCountry "AUT"]
[SourceTitle "playchess.com"]
[Source "ChessBase"]
[SourceQuality "1"]
[TimeControl "40/5400+30:1800+30"]

{[%evp 12,77,36,26,47,43,63,59,66,49,56,34,27,26,24,14,31,31,31,18,23,14,40,34,77,0,6,0,7,0,2,0,0,-89,-84,-89,-86,-87,-63,-87,-102,-620,-581,-613,-615,-615,-620,-619,-620,-605,-33,-29,-13,-11,-13,-8,-12,-13,-8,-15,-8,-14,0,0,8,7,53,59]} 1. c4 {[%emt 0:00:06]} f5 {[%emt 0:01:08]} 2. Nf3 {[%emt 0:00:12]} Nf6 {[%emt 0:00:08]} 3. d4 {[%emt 0:00:15]} e6 {[%emt 0:00:36]} 4. g3 {[%emt 0:00:26]} Bb4+ {[%emt 0:05:28]} 5. Bd2 {[%emt 0:01:22]} Be7 {[%emt 0:01:32]} 6. Bg2 {[%emt 0:00:10]} O-O {[%emt 0:00:10]} 7. O-O {[%emt 0:00:14]} d6 {[%emt 0:00:52][%cal Bd7d6,Bd6d5][%mdl 32] A90: Dutch Defence: Miscellaneous and Modern Stonewall (with ...Bd6).} 8. Nc3 {[%emt 0:00:40]} Ne4 {[%emt 0:09:07]} 9. Nxe4 {[%emt 0:08:37]} fxe4 {[%emt 0:00:24]} 10. Ne1 {[%emt 0:00:05]} d5 {[%emt 0:00:46]} 11. Nc2 $146 {[%emt 0:01:15]} (11. e3 Nd7 12. f3 Nb6 13. b3 exf3 14. Nxf3 dxc4 15. Qc2 cxb3 16. axb3 Nd7 17. b4 {½-½ Valeinis,J (2501)-Williamson,H (2491) Pinson Memorial GM email 2012}) 11... Nd7 {[%emt 0:12:02]} 12. Rc1 {[%emt 0:14:16]} a5 {[%emt 0:11:30]} 13. b3 {[%emt 0:13:57]} Nf6 {[%emt 0:07:23]} 14. f3 {[%emt 0:01:54]} b6 {[%emt 0:06:05]} 15. Bg5 {[%emt 0:02:30]} exf3 {[%emt 0:08:13]} 16. exf3 {[%emt 0:00:14]} c5 {[%emt 0:00:50]} 17. f4 {[%emt 0:04:19]} Bb7 {[%emt 0:05:21]} 18. dxc5 {[%emt 0:06:31] White is more active.} (18. Re1 $16) 18... Bxc5+ $11 {[%emt 0:01:25]} 19. Kh1 {[%emt 0:02:39]} h6 {[%emt 0:13:41]} 20. Bh4 {[%emt 0:10:38]} Qe7 {[%emt 0:05:37]} 21. cxd5 {[%emt 0:03:32]} Rad8 {[%emt 0:02:30][%cal Rd8d5]} 22. Re1 {[%emt 0:02:59] [#]} (22. Bxf6 $11 Qxf6 23. Qe2 Bxd5 (23... exd5 24. a3 $11) 24. Bxd5 exd5 (24... Rxd5 25. Ne3 $17) 25. Qd3) 22... Rxd5 $1 $17 {[%emt 0:00:09]} (22... Bxd5 23. Bxd5 Rxd5 24. Qxd5 exd5 25. Rxe7 Bxe7 26. Nd4 $11) 23. Bxf6 {[%emt 0:05:30]} Qxf6 {[%emt 0:03:58]} 24. Qg4 {[%emt 0:01:52] [#]} Rfd8 $1 {[%emt 0:01:32][%cal Od8d6] Black plays in the center} 25. a3 {[%emt 0:08:00][%cal Ob3b4]} (25. Rcd1 h5) 25... Qf7 {[%emt 0:01:46] Threatens to win with ...Rd2.} (25... Qe7 {simplifies} 26. Qxe6+ Qxe6 27. Rxe6 Rd1+) 26. b4 $2 {[%emt 0:05:48][%mdl 8192]} (26. Qxe6 $17 Qxe6 27. Rxe6) 26... Rd2 $19 {[%emt 0:00:35]} 27. Be4 {[%emt 0:00:04]} axb4 {[%emt 0:00:36]} 28. axb4 {[%emt 0:00:13]} Bf2 {[%emt 0:00:07] This pair of bishops is nice.} 29. Re2 {[%emt 0:00:14]} h5 {[%emt 0:00:54]} 30. Qf3 {[%emt 0:00:12] [#]} Rxe2 {[%emt 0:00:31]} (30... Bxe4 $1 $19 31. Rxe4 R8d3) 31. Qxe2 $15 {[%emt 0:00:08][%cal Oe4g2]} Rd2 {[%emt 0:00:09]} 32. Qf3 {[%emt 0:00:04]} Bxe4 {[%emt 0:00:14]} 33. Qxe4 {[%emt 0:00:05][%cal Oc2d4] Strongly threatening Nd4!.} Qf5 {[%emt 0:00:26]} 34. Qxf5 {[%emt 0:00:38]} exf5 {[%emt 0:00:04]} 35. Na3 {[%emt 0:01:25]} ({Don't go for} 35. Kg2 $2 Bd4+ 36. Kh3 Bb2 $19) 35... h4 {[%emt 0:00:47]} 36. Nc4 {[%emt 0:00:37]} Ra2 {[%emt 0:00:15]} 37. gxh4 {[%emt 0:00:06]} Kf7 {[%emt 0:01:14]} (37... Bxh4 38. Nxb6 Rb2 39. Nd5) 38. h5 {[%emt 0:01:25]} Ke6 {[%emt 0:00:06] [#]} (38... Re2 $11) 39. Nxb6 $1 {[%emt 0:02:13] Whites escaped into a draw.   Weighted Error Value: White=0.27 (precise) /Black=0.20 (precise)   Loses game:     	White=1     	---        Mistake:       	White=2     	Black=1      Inaccurate:     	---       	Black=2      OK:         	White=10    	Black=7      Best:        	White=3     	Black=1      Strong:       	---       	Black=1      Brilliant:      	White=1     	---} 1/2-1/2

[Event "AUT Bundesliga 2024-25"]
[Site "Austria"]
[Date "2025.04.02"]
[Round "6.17"]
[White "Subelj, Jan"]
[Black "Froewis, Georg"]
[Result "1-0"]
[Annotator "TA"]
[ECO "A09"]
[WhiteElo "2528"]
[BlackElo "2429"]
[PlyCount "91"]
[EventDate "2024.08.28"]
[EventType "team-tourn"]
[EventCountry "AUT"]
[SourceTitle "playchess.com"]
[Source "ChessBase"]
[SourceQuality "1"]
[TimeControl "40/5400+30:1800+30"]

{[%evp 13,91,54,59,62,62,53,89,91,72,85,94,95,94,87,97,103,169,164,166,159,219,216,264,285,287,275,272,266,265,253,281,274,281,277,270,281,262,249,249,191,288,185,176,172,195,202,243,252,267,270,270,263,341,334,351,355,365,365,365,365,365,365,365,334,391,302,302,270,270,262,255,244,875,859,747,731,902,822,582,492]} 1. c4 {[%emt 0:00:12]} e6 {[%emt 0:00:02]} 2. g3 {[%emt 0:00:35]} d5 {[%emt 0:00:04]} 3. Bg2 {[%emt 0:00:37]} Nf6 {[%emt 0:00:04]} 4. Nf3 {[%emt 0:00:23]} d4 {[%emt 0:00:04]} 5. d3 {[%emt 0:00:37]} Nc6 {[%emt 0:00:04]} 6. O-O {[%emt 0:00:18]} e5 {[%emt 0:00:30]} 7. b4 {[%emt 0:06:01]} Bxb4 {[%emt 0:03:53] [#]} 8. Nxe5 $1 {[%emt 0:00:56] A09: Réti Opening: 1 Nf3 d5 2 c4.} Nxe5 {[%emt 0:05:02]} 9. Qa4+ {[%emt 0:00:53]} Nc6 {[%emt 0:00:12] White now steadily converts the win.} 10. Bxc6+ {[%emt 0:00:15] White is better.} bxc6 {[%emt 0:00:03]} 11. Qxb4 {[%emt 0:00:14]} Qd6 {[%emt 0:13:15]} 12. Ba3 {[%emt 0:11:19][%cal Bc1a3,Ba3b4,Bb4c5][%mdl 32]} Qxb4 {[%emt 0:01:00]} 13. Bxb4 {[%emt 0:00:06]} Bh3 {[%emt 0:00:08]} 14. Re1 {[%emt 0:00:15]} O-O-O {[%emt 0:00:26]} (14... Nd7 $16) 15. Bc5 $146 {[%emt 0:03:04]} (15. Nd2 Rhe8 16. Nb3 Nd7 17. Ba3 c5 18. Bxc5 Nxc5 19. Nxc5 Re5 20. Nb3 g5 21. f3 {1-0 Sahakyan,A (2343)-Shvedova,A (2083) EU-ch 23rd Vrnjacka Banja 2023 (10)}) 15... Rhe8 {[%emt 0:14:26]} 16. Nd2 $1 {[%emt 0:00:41]} (16. Bxa7 Kb7 17. Bc5 Re5 $17) 16... Re5 {[%emt 0:00:28] [#]} (16... a6 $16 17. Nb3 Nd7 18. Bxd4 g5) 17. Bxd4 $1 {[%emt 0:00:42][%mdl 512]} Rxe2 {[%emt 0:02:15]} ({Much weaker is} 17... Rxd4 18. Nf3 $18) (17... Re6 18. Bxf6) 18. Rxe2 {[%emt 0:00:42]} Rxd4 {[%emt 0:00:04]} 19. Re3 {[%emt 0:02:06]} Bf5 {[%emt 0:01:36]} 20. Nf3 {[%emt 0:00:34]} Rd6 {[%emt 0:06:57]} 21. Ne5 {[%emt 0:01:56]} Be6 {[%emt 0:00:06]} 22. Rb1 {[%emt 0:03:30]} a6 {[%emt 0:06:09] [#]} 23. d4 $1 {[%emt 0:09:36]} Rxd4 {[%emt 0:02:50]} 24. Nxc6 {[%emt 0:00:29]} Rd6 {[%emt 0:01:06]} 25. Rb8+ {[%emt 0:03:00]} Kd7 {[%emt 0:00:04]} 26. Ne5+ {[%emt 0:00:05]} Ke7 {[%emt 0:00:03]} 27. Kg2 {[%emt 0:00:40]} Nd7 {[%emt 0:01:29]} 28. Rh8 {[%emt 0:02:59]} Nxe5 {[%emt 0:02:18]} 29. Rxe5 {[%emt 0:00:05][%mdl 4096] Endgame KRR-KRB} Rd2 {[%emt 0:01:23]} 30. Rxh7 {[%emt 0:04:39]} Kf6 {[%emt 0:03:02]} 31. Rc5 {[%emt 0:01:08]} Rxa2 {[%emt 0:01:05]} 32. Rh4 {[%emt 0:02:11]} a5 {[%emt 0:05:30][%cal Ba6a5,Ba5a4][%mdl 32]} 33. Rxc7 {[%emt 0:02:59]} a4 {[%emt 0:01:55]} 34. Rf4+ {[%emt 0:00:50]} Ke5 {[%emt 0:01:07]} 35. Ra7 {[%emt 0:00:29]} a3 {[%emt 0:01:33]} 36. Rf3 {[%emt 0:02:21]} Bxc4 {[%emt 0:00:26]} 37. Raxa3 {[%emt 0:00:42]} Rb2 {[%emt 0:00:23]} 38. Ra7 {[%emt 0:04:10]} f5 {[%emt 0:03:23]} 39. Rxg7 {[%emt 0:02:53]} Bd5 {[%emt 0:00:16]} 40. Re7+ {[%emt 0:00:13]} Kf6 {[%emt 0:00:10]} 41. Ree3 {[%emt 0:30:36]} Kg5 {[%emt 0:34:50]} 42. Re5 {[%emt 0:00:52][%csl LRd5,LRf5]} Be4 {[%emt 0:00:07]} (42... Bxf3+ 43. Kxf3 Kf6) 43. h4+ {[%emt 0:00:29] White is clearly winning.} Kg6 {[%emt 0:00:08]} 44. Re6+ {[%emt 0:00:07]} Kh5 {[%emt 0:00:15] [#]} 45. Rxe4 $1 {[%emt 0:00:20]} fxe4 {[%emt 0:00:02]} 46. Re3 {[%emt 0:00:13] Weighted Error Value: White=0.08 (flawless) /Black=0.34  Mistake:       	---       	Black=3      Inaccurate:     	White=1     	Black=2      OK:         	White=20    	Black=12     Best:        	White=3     	Black=1      Strong:       	White=1     	---        Brilliant:      	White=1     	---} 1-0

[Event "AUT Bundesliga 2024-25"]
[Site "Austria"]
[Date "2025.04.02"]
[Round "6.18"]
[White "Balint, Peter"]
[Black "Gschnitzer, Adrian"]
[Result "0-1"]
[Annotator "RC"]
[ECO "B90"]
[WhiteElo "2366"]
[BlackElo "2430"]
[PlyCount "76"]
[EventDate "2024.08.28"]
[EventType "team-tourn"]
[EventCountry "AUT"]
[SourceTitle "playchess.com"]
[Source "ChessBase"]
[SourceQuality "1"]
[TimeControl "40/5400+30:1800+30"]

1. e4 {[%emt 0:00:01]} c5 {[%emt 0:00:08]} 2. Nf3 {[%emt 0:00:11]} d6 {[%emt 0:00:07]} 3. d4 {[%emt 0:00:30]} cxd4 {[%emt 0:00:07]} 4. Nxd4 {[%emt 0:00:06]} Nf6 {[%emt 0:00:07]} 5. Nc3 {[%emt 0:00:07]} a6 {[%emt 0:00:05]} 6. f3 {[%emt 0:00:21]} e5 {[%emt 0:00:28]} 7. Nb3 {[%emt 0:00:19]} Be7 {[%emt 0:00:09]} 8. Be3 {[%emt 0:00:14]} Be6 {[%emt 0:00:26]} 9. Qd2 {[%emt 0:00:06]} h5 {[%emt 0:00:34]} 10. Be2 {[%emt 0:03:33]} Nbd7 {[%emt 0:00:35]} 11. Nd5 {[%emt 0:03:46]} Bxd5 {[%emt 0:00:35]} 12. exd5 {[%emt 0:00:07]} Qc7 {[%emt 0:00:44]} 13. Rc1 {[%emt 0:00:47]} O-O {[%emt 0:13:18]} 14. O-O {[%emt 0:02:02]} a5 {[%emt 0:06:38]} 15. c4 {[%emt 0:08:17]} h4 {[%emt 0:02:48]} 16. Rfd1 {[%emt 0:06:08]} a4 {[%emt 0:07:23]} 17. Na1 {[%emt 0:00:21]} Nc5 {[%emt 0:00:28]} 18. Nc2 {[%emt 0:35:56]} Nh5 {[%emt 0:02:40]} 19. Na3 {[%emt 0:05:22]} Bd8 {[%emt 0:01:56]} 20. Bf1 {[%emt 0:03:29]} Qe7 {[%emt 0:04:01]} 21. Rb1 {[%emt 0:02:12]} Bb6 {[%emt 0:04:15]} 22. Nb5 {[%emt 0:10:18]} f5 {[%emt 0:06:33]} 23. b4 {[%emt 0:02:04]} axb3 {[%emt 0:01:13]} 24. axb3 {[%emt 0:00:04]} f4 {[%emt 0:07:02]} 25. Bf2 {[%emt 0:00:04]} e4 {[%emt 0:04:18]} 26. Bd4 {[%emt 0:00:08]} Ng3 {[%emt 0:06:33]} 27. Qc2 {[%emt 0:04:18]} Nf5 {[%emt 0:03:38]} 28. b4 {[%emt 0:08:14]} Nxd4 {[%emt 0:01:01]} 29. Rxd4 {[%emt 0:00:10]} Nd3 {[%emt 0:05:05]} 30. Bxd3 {[%emt 0:04:47]} exd3 {[%emt 0:04:41]} 31. Qxd3 {[%emt 0:00:14]} Ra2 {[%emt 0:00:19]} 32. c5 {[%emt 0:01:31]} Qg5 {[%emt 0:00:21]} 33. Qf1 {[%emt 0:00:28]} dxc5 {[%emt 0:01:17]} 34. Rdd1 {[%emt 0:00:36]} h3 {[%emt 0:00:50]} 35. d6 {[%emt 0:00:25]} c4+ {[%emt 0:01:41]} 36. Nd4 {[%emt 0:00:07]} Qd5 {[%emt 0:00:35]} 37. gxh3 {[%emt 0:00:58]} Bxd4+ {[%emt 0:00:12]} 38. Kh1 {[%emt 0:00:18]} b5 {[%emt 0:00:47]} 0-1

[Event "AUT Bundesliga 2024-25"]
[Site "Austria"]
[Date "2025.04.02"]
[Round "6.19"]
[White "Mons, Leon"]
[Black "Vachier-Lagrave, Maxime"]
[Result "0-1"]
[Annotator "TA"]
[ECO "B21"]
[WhiteElo "2479"]
[BlackElo "2722"]
[PlyCount "74"]
[EventDate "2024.08.28"]
[EventType "team-tourn"]
[EventCountry "AUT"]
[SourceTitle "playchess.com"]
[Source "ChessBase"]
[SourceQuality "1"]
[TimeControl "40/5400+30:1800+30"]

{[%evp 9,74,7,0,0,8,11,8,10,25,-6,20,8,18,22,29,7,9,17,12,12,34,36,35,43,52,31,60,53,43,41,57,56,84,-25,-29,-26,0,0,0,-12,-7,-42,-47,-102,-48,-42,-27,-63,-43,-72,-75,-80,-62,-83,-58,-188,-18,-420,-435,-415,-305,-404,-308,-421,-433,-691,-701]} 1. e4 {[%emt 0:00:17]} c5 {[%emt 0:00:04]} 2. d4 {[%emt 0:00:31]} cxd4 {[%emt 0:00:06]} 3. Qxd4 {[%emt 0:00:07]} Nc6 {[%emt 0:01:18]} 4. Qd3 {[%emt 0:00:09]} g6 {[%emt 0:01:24]} 5. Nf3 {[%emt 0:01:29]} Bg7 {[%emt 0:00:18]} 6. Be2 {[%emt 0:00:21] B21: Sicilian: 2 f4 and Morra Gambit.} Nf6 {[%emt 0:02:14][%cal Bg8f6,Bf6d7,Bd7c5][%mdl 32]} 7. Nc3 {[%emt 0:00:16]} O-O {[%emt 0:01:26]} 8. O-O {[%emt 0:00:16] The position is equal.} d6 {[%emt 0:01:25]} 9. Nd5 {[%emt 0:01:12]} Bg4 {[%emt 0:06:10]} 10. c3 {[%emt 0:02:20]} Nd7 {[%emt 0:02:19]} 11. Bg5 {[%emt 0:06:34]} h6 {[%emt 0:01:19]} 12. Bh4 {[%emt 0:00:13]} g5 {[%emt 0:16:49]} 13. Bg3 {[%emt 0:00:24]} Nc5 {[%emt 0:00:03]} 14. Qc2 {[%emt 0:11:41]} f5 {[%emt 0:00:54]} 15. exf5 {[%emt 0:02:10]} Bxf5 {[%emt 0:00:33]} 16. Qd1 {[%emt 0:00:16]} Kh8 {[%emt 0:08:30]} 17. Re1 $146 {[%emt 0:09:21]} (17. h4 Ne4 18. hxg5 hxg5 19. Bd3 e6 20. Bxe4 Bxe4 21. Ne3 Bxf3 22. gxf3 d5 23. Kg2 {½-½ Shimanov,A (2593)-Zhu,J (2514) Chessable Masters Play In blitz 2025 (6)}) 17... e5 {[%emt 0:07:54]} 18. Nd2 {[%emt 0:08:48]} Qd7 {[%emt 0:04:08]} 19. b4 {[%emt 0:06:23]} Ne6 {[%emt 0:01:32]} 20. Nc4 {[%emt 0:04:38]} Nf4 {[%emt 0:01:17]} 21. Bxf4 {[%emt 0:02:33]} (21. b5 $16 Nd8 22. Bxf4 gxf4 23. b6) 21... exf4 $11 {[%emt 0:01:13]} 22. Bd3 {[%emt 0:05:42]} Bxd3 {[%emt 0:04:03]} 23. Qxd3 {[%emt 0:00:05]} b5 {[%emt 0:00:07]} 24. Na3 {[%emt 0:10:15]} Rab8 {[%emt 0:03:04]} 25. f3 {[%emt 0:09:12][%cal Oa1d1]} (25. Nxb5 Ne5 26. Rxe5 dxe5 $19) 25... Ne5 {[%emt 0:00:53]} 26. Qd2 {[%emt 0:00:39]} (26. Qf1 $15) 26... Rbe8 {[%emt 0:05:31]} ({Black should play} 26... g4 $17 27. Rf1 gxf3 28. gxf3 Rf5) 27. Re4 $15 {[%emt 0:01:53]} g4 {[%emt 0:05:32]} (27... a6 {seems wilder.} 28. Rf1 g4 29. Nxf4 gxf3 30. Rxe5 Bxe5 31. Ng6+ Kg7) 28. Rxf4 {[%emt 0:02:08]} gxf3 {[%emt 0:03:14]} 29. Rf1 {[%emt 0:03:08]} Rxf4 {[%emt 0:06:37]} 30. Nxf4 {[%emt 0:00:29]} Qc6 {[%emt 0:00:03]} 31. Nh5 {[%emt 0:04:03]} Re6 {[%emt 0:02:11]} 32. Nxg7 {[%emt 0:01:39] [#]} (32. Qe3 $15) 32... Kxg7 $2 {[%emt 0:00:05]} (32... fxg2 $1 $19 33. Rf8+ (33. Nxe6 $2 {is the wrong capture.} gxf1=Q+ 34. Kxf1 Qh1+ 35. Ke2 Qf3+ 36. Ke1 Nd3+ $19) (33. Qxg2 $2 Rg6 $19) 33... Kxg7) 33. g3 $2 {[%emt 0:03:40][%mdl 8192]} (33. Rf2 $11 {and White has nothing to worry.}) 33... Rf6 $19 {[%emt 0:00:37]} 34. Nc2 {[%emt 0:00:40]} Ng4 {[%emt 0:02:30] White must now prevent ...f2+.} 35. Rf2 {[%emt 0:00:53]} Qe4 {[%emt 0:02:45] Dodges Ne3} 36. h3 {[%emt 0:01:20] White is weak on the light squares} Nxf2 {[%emt 0:00:10]} 37. Kxf2 {[%emt 0:00:06]} (37. Qxf2 $142 a6 38. g4) 37... Qe6 {[%emt 0:00:59] Weighted Error Value: White=0.50/Black=0.19 (very precise)   Loses game:     	White=1     	---        Missed win:     	---       	Black=1      Mistake:       	White=4     	Black=1      Inaccurate:     	White=5     	Black=4      OK:         	White=7     	Black=13     Best:        	White=2     	Black=1} 0-1